bitfinex/quotes_ETHUSD_20240825
["timestamp","ask_amount","ask_price","bid_price","bid_amount"]
[1724599730026,2.3007,2775.9,2775.2,9.54403]
[1724599730199,2.3007,2775.9,2775.3,3.60317]
[1724599731598,2.3007,2775.9,2775.2,5.94076]
[1724599731784,2.3007,2775.9,2775.3,0.71992091]
[1724599733921,2.3007,2775.9,2775.3,4.32310091]
[1724599736135,2.3007,2775.9,2775.3,0.71992091]
[1724599736994,4.18917824,2775.9,2775.3,0.71992091]
[1724599737421,4.18917824,2775.9,2775.2,3.60325]
[1724599737854,4.19116294,2775.9,2775.2,3.60325]
[1724599738547,2.3007,2775.9,2775.2,3.60325]
[1724599738745,2.3007,2775.9,2775.2,7.20652]
[1724599738929,2.3007,2775.9,2775.2,3.60325]
[1724599739128,4.19116294,2775.9,2775.2,4.68352491]
[1724599739335,2.3007,2775.9,2775.2,8.28678491]
[1724599739921,4.19116294,2775.9,2775.2,8.28678491]
[1724599740120,4.19116294,2775.9,2775.2,8.28679491]
[1724599740430,4.19116294,2775.9,2775.2,8.28678491]
[1724599740953,2.3007,2775.9,2775.2,8.28678491]
[1724599741109,4.19116294,2775.9,2775.2,8.28678491]
[1724599741303,2.3007,2775.9,2775.2,8.28678491]
[1724599741503,4.19116294,2775.9,2775.2,8.28678491]
[1724599741700,4.19116294,2775.9,2775.2,4.68352491]
[1724599742155,2.3007,2775.3,2774.7,3.60398]
[1724599742450,2.3007,2775.1,2774.7,3.60398]
[1724599742651,2.3007,2775.1,2774.8,3.60382]
[1724599745056,2.3007,2775.1,2774.5,1.25844905]
[1724599745057,2.3007,2775.5,2775.0,3.6035]
[1724599749792,2.3007,2775.5,2774.9,3.60372]
[1724599751267,1.25844905,2775.4,2774.6,3.60405]
[1724599751589,2.4078,2775.3,2774.6,4.551696]
[1724599753688,2.4078,2775.3,2774.7,3.60398]
[1724599754852,2.4078,2775.3,2774.7,4.86242905]
[1724599755165,2.4078,2775.3,2774.8,4.18478751]
[1724599755553,2.4078,2775.3,2774.9,1.25844905]
[1724599757092,2.4078,2775.3,2774.8,4.18478751]
[1724599757993,2.4078,2775.3,2774.9,3.60369]
[1724599761546,2.4078,2775.3,2774.8,0.58100751]
[1724599761844,2.4078,2775.3,2774.9,0.54434366]
[1724599762403,2.2578,2775.3,2774.9,0.54434366]
[1724599764757,2.2578,2775.3,2774.7,3.60387]
[1724599766587,2.2578,2775.3,2774.5,3.60416]
[1724599767224,2.2578,2775.3,2774.5,7.20834]
[1724599767429,2.2578,2775.3,2774.5,3.60416]
[1724599767670,2.2578,2775.3,2774.5,7.20832]
[1724599767879,2.2578,2775.3,2774.6,0.84667691]
[1724599768574,2.2578,2775.3,2774.6,4.45077691]
[1724599768744,2.2578,2775.3,2774.7,3.60398]
[1724599773201,2.2578,2775.3,2774.6,0.84667691]
[1724599773410,2.2578,2775.3,2773.8,1.88305261]
[1724599773411,2.2858,2774.7,2774.3,3.60442]
[1724599773582,2.2858,2774.7,2774.3,4.625333]
[1724599775924,2.2858,2774.7,2774.3,1.020913]
[1724599776236,2.2858,2774.7,2774.1,3.60464]
[1724599777882,2.2858,2774.7,2774.2,3.60462]
[1724599789260,2.2858,2774.7,2774.2,7.20917]
[1724599789463,2.2858,2774.7,2774.4,3.60435]
[1724599790537,2.2858,2774.7,2774.2,9.61927]
[1724599790725,2.2858,2774.7,2774.3,1.0877719]
[1724599791053,2.2858,2774.7,2774.3,4.6922719]
[1724599791432,2.2858,2774.7,2774.3,1.0877719]
[1724599792959,2.2858,2774.7,2774.2,3.60452]
[1724599793122,2.2858,2774.7,2774.3,3.6045]
[1724599795591,2.3438,2774.9,2774.3,4.86288905]
[1724599795750,2.3438,2774.9,2774.5,3.60416]
[1724599795945,2.3438,2774.9,2774.6,0.360416]
[1724599796209,2.3438,2774.9,2774.5,3.60416]
[1724599798645,2.3438,2774.9,2774.3,7.20885]
[1724599798849,2.3438,2774.9,2774.4,3.60436]
[1724599800151,2.3438,2774.9,2774.3,3.6044]
[1724599800353,2.3438,2774.9,2774.1,4.86317905]
[1724599800354,2.3438,2774.9,2774.1,3.60473]
[1724599800554,1.25844905,2775.0,2774.2,0.601493]
[1724599800555,2.3438,2774.7,2774.2,0.601493]
[1724599800800,2.3438,2774.7,2774.1,3.60473]
[1724599801148,2.3438,2774.7,2773.9,4.86341905]
[1724599801349,2.3438,2774.7,2774.1,3.60475]
[1724599801661,2.3438,2774.7,2774.1,4.86319905]
[1724599801864,2.3438,2774.7,2774.2,0.48631991]
[1724599802103,1.25844905,2775.0,2774.2,0.48631991]
[1724599802104,2.3438,2774.9,2774.3,1.25844905]
[1724599803205,2.3438,2774.9,2774.3,4.86291905]
[1724599803705,2.3438,2774.9,2774.2,0.48631991]
[1724599804210,2.3438,2774.9,2774.2,4.09091991]
[1724599804394,2.3438,2774.9,2774.3,1.1364259]
[1724599806615,2.3438,2774.9,2774.3,4.7409159]
[1724599807099,2.3438,2774.9,2774.5,3.6042]
[1724599807401,2.3438,2774.9,2774.3,4.7408159]
[1724599807601,2.326,2774.8,2774.3,4.7408159]
[1724599807781,2.326,2774.8,2774.4,0.47408159]
[1724599808299,2.326,2774.8,2774.3,3.60439]
[1724599809599,2.326,2774.8,2774.3,7.20883]
[1724599809916,1.25844905,2774.7,2774.1,3.60469]
[1724599810114,1.25844905,2774.5,2773.9,7.20988]
[1724599810281,2.326,2774.4,2773.9,3.60493]
[1724599810931,2.326,2774.4,2773.9,7.20987]
[1724599811088,2.326,2774.4,2773.9,3.60493]
[1724599811621,2.326,2774.0,2773.6,0.75643106]
[1724599811786,2.326,2774.0,2773.5,4.17048386]
[1724599811990,1.25844905,2773.9,2773.5,3.60547]
[1724599812934,1.25844905,2773.9,2773.3,7.21148]
[1724599813139,1.25844905,2773.9,2773.3,4.75216577]
[1724599814004,1.25844905,2773.9,2773.4,3.60559]
[1724599814325,2.326,2773.8,2773.3,4.75221577]
[1724599814625,1.25844905,2773.7,2773.1,7.21191]
[1724599814795,1.25844905,2773.7,2773.1,3.60595]
[1724599815707,2.326,2773.6,2773.1,3.60595]
[1724599815926,1.25844905,2773.5,2772.9,3.60623]
[1724599816255,2.326,2773.4,2773.0,0.360623]
[1724599816527,2.326,2773.4,2772.9,3.60623]
[1724599818439,2.326,2773.2,2772.7,3.60657]
[1724599818930,2.326,2773.2,2772.6,0.56518328]
[1724599818931,1.25844905,2773.1,2772.6,0.56518328]
[1724599819286,2.326,2773.0,2772.6,0.56518328]
[1724599821010,2.326,2773.0,2772.7,3.60649]
[1724599822032,2.326,2773.0,2772.8,3.60646]
[1724599822333,2.326,2773.0,2772.6,8.55639961]
[1724599822505,2.326,2773.0,2772.7,3.60656]
[1724599823435,2.4095,2773.4,2773.1,3.60598]
[1724599823615,7.46,2773.5,2773.2,4.327125]
[1724599823826,7.46,2773.5,2773.4,3.60568]
[1724599825193,8.51116931,2774.6,2773.7,3.60529]
[1724599825194,7.46,2774.3,2773.7,3.60529]
[1724599825536,2.4095,2774.2,2773.7,3.60529]
[1724599826826,2.4095,2774.2,2773.5,3.60552]
[1724599827023,2.2519,2774.1,2773.3,7.2115]
[1724599827334,2.2519,2774.1,2773.3,7.21145]
[1724599827702,2.2519,2774.1,2773.3,3.60572]
[1724599831136,2.2519,2774.1,2773.2,3.60585]
[1724599831342,2.2519,2774.0,2773.2,3.60585]
[1724599833697,2.2519,2774.0,2773.3,3.60576]
[1724599835667,2.2519,2774.0,2773.5,3.60547]
[1724599837609,2.2519,2774.0,2773.5,3.60546]
[1724599838167,2.2519,2774.0,2773.2,2.3235]
[1724599838373,2.2519,2774.0,2773.5,3.60545]
[1724599838784,2.2519,2774.0,2773.5,7.21091]
[1724599839110,2.2519,2774.0,2773.5,3.60545]
[1724599839313,7.46,2774.3,2773.3,0.592953]
[1724599839635,9.7119,2774.3,2773.9,3.60495]
[1724599839772,2.63525469,2775.4,2773.6,2.3235]
[1724599839773,2.2519,2774.5,2774.2,3.6046]
[1724599840116,2.2519,2774.5,2774.1,3.60468]
[1724599841011,2.2519,2774.5,2773.9,3.60492]
[1724599841720,2.2519,2774.5,2773.8,3.60507]
[1724599841913,2.2519,2774.5,2773.9,0.360507]
[1724599842210,2.2519,2774.5,2773.9,3.965457]
[1724599842393,2.2519,2774.5,2773.8,3.60507]
[1724599842592,2.2519,2774.5,2773.7,3.60528]
[1724599842793,2.2519,2774.5,2773.6,3.60537]
[1724599843015,2.2519,2774.5,2773.6,7.21069]
[1724599844111,2.2519,2774.5,2773.7,3.60525]
[1724599844318,2.2519,2774.5,2773.6,3.60532]
[1724599844319,2.2519,2774.4,2773.8,3.60516]
[1724599845508,2.2519,2774.4,2773.6,3.60532]
[1724599845889,2.2519,2774.4,2773.6,7.21065]
[1724599847798,2.2519,2774.4,2773.4,3.60561]
[1724599847986,0.7187831,2774.3,2773.4,4.326749]
[1724599848186,2.2759,2774.2,2773.4,3.6056]
[1724599849127,2.2759,2774.2,2773.5,3.60554]
[1724599849485,2.2759,2774.2,2773.6,3.60541]
[1724599852117,2.2759,2774.2,2773.7,3.60527]
[1724599852295,2.2759,2774.2,2773.7,4.326338]
[1724599854544,2.2759,2774.2,2773.8,3.60514]
[1724599856042,2.2759,2774.2,2773.8,3.60504]
[1724599867376,2.2759,2774.2,2773.9,3.60501]
[1724599867983,2.2759,2774.2,2773.9,3.60503]
[1724599868187,2.2759,2774.2,2774.0,0.721007]
[1724599869095,2.4216,2774.5,2774.0,4.325867]
[1724599869278,2.4216,2774.5,2774.1,3.60467]
[1724599869794,2.4216,2774.5,2774.0,3.60486]
[1724599869949,2.4216,2774.4,2774.0,3.60486]
[1724599870355,2.4216,2774.4,2774.0,7.20969]
[1724599870667,2.4216,2774.4,2774.0,3.60483]
[1724599871268,2.4216,2774.4,2774.0,4.325823]
[1724599873267,2.4216,2774.4,2774.0,0.720993]
[1724599873484,2.4216,2774.4,2773.9,3.60502]
[1724599875988,2.4216,2774.4,2774.0,3.60489]
[1724599876943,2.4216,2774.4,2773.8,7.21017]
[1724599877149,2.4216,2774.3,2773.7,3.60525]
[1724599878450,2.4216,2774.3,2773.8,3.60515]
[1724599879203,2.4216,2774.3,2773.8,7.21023]
[1724599879619,2.4216,2774.3,2773.8,3.60508]
[1724599879822,2.4216,2774.3,2773.8,7.21012]
[1724599880051,2.4216,2774.3,2773.8,7.21013]
[1724599880348,2.4216,2774.3,2773.8,8.01583766]
[1724599880730,2.4216,2774.3,2773.8,8.01582766]
[1724599881129,2.4216,2774.3,2773.8,4.41074766]
[1724599881454,2.4216,2774.1,2773.6,3.60534]
[1724599881624,2.4216,2774.1,2773.6,7.21068]
[1724599882542,2.4216,2774.1,2773.7,3.60527]
[1724599883426,2.4216,2774.1,2773.8,3.60515]
[1724599883656,2.4216,2774.1,2773.8,8.05723557]
[1724599883811,4.31387575,2774.3,2774.0,3.6049]
[1724599884147,2.4216,2774.3,2774.0,3.6049]
[1724599884554,1.89227575,2774.2,2773.7,3.6052]
[1724599884716,2.4216,2774.1,2773.8,3.60507]
[1724599885050,2.4216,2774.1,2773.8,4.45198357]
[1724599886324,2.4216,2774.1,2773.5,7.21094]
[1724599886665,2.3217,2773.7,2773.2,3.60586]
[1724599886811,1.89270075,2773.9,2773.1,3.60599]
[1724599886812,2.3217,2773.5,2773.1,3.60597]
[1724599887012,1.25886566,2773.4,2772.9,3.60624]
[1724599887215,1.25886566,2773.4,2772.9,0.79692011]
[1724599887453,1.25886566,2773.4,2772.7,3.60653]
[1724599887454,2.3217,2773.3,2772.7,3.60653]
[1724599887816,2.3217,2773.3,2772.9,3.60632]
[1724599890366,2.3217,2773.3,2772.7,3.60649]
[1724599890869,2.3217,2773.3,2772.3,7.30636328]
[1724599890870,2.3217,2773.3,2772.8,3.60643]
[1724599896246,2.3217,2773.3,2772.8,7.21281]
[1724599896438,2.3217,2773.3,2772.9,4.327571]
[1724599899986,2.3217,2773.3,2773.0,3.60619]
[1724599900803,2.3217,2773.3,2772.9,0.721281]
[1724599900960,2.3217,2773.3,2772.8,7.21275]
[1724599901387,2.3217,2773.3,2772.8,3.60637]
[1724599901594,2.3217,2773.3,2772.4,3.60691]
[1724599901790,2.3217,2773.3,2772.5,3.60677]
[1724599902914,2.3217,2773.3,2772.1,2.3776]
[1724599902915,2.3217,2773.3,2772.6,7.21334]
[1724599903263,2.3217,2773.3,2772.7,0.721334]
[1724599903401,2.3217,2773.3,2772.6,3.60663]
[1724599908975,2.3217,2773.3,2772.4,7.21381]
[1724599909423,2.3217,2773.3,2772.5,3.60681]
[1724599910014,1.26017109,2773.1,2772.5,3.60681]
[1724599910221,2.3697,2773.0,2772.6,3.60667]
[1724599910544,2.3697,2773.0,2772.6,7.934664]
[1724599910678,2.3697,2773.6,2772.9,1.26017109]
[1724599910874,2.3697,2773.6,2773.0,3.60618]
[1724599911818,2.3697,2773.4,2772.9,3.6063]
[1724599912791,2.3697,2773.4,2772.9,1.26017109]
[1724599913387,2.3697,2773.4,2773.1,3.60605]
[1724599914925,2.3697,2773.4,2772.9,3.60624]
[1724599916182,2.3697,2773.4,2772.9,8.05977411]
[1724599916378,2.3697,2773.4,2773.2,3.60591]
[1724599916581,9.8297,2773.7,2773.2,3.60591]
[1724599917327,9.8297,2773.7,2772.9,4.45354411]
[1724599917328,9.8297,2773.7,2773.0,3.60608]
[1724599917675,1.26017109,2773.6,2773.0,3.60608]
[1724599918304,2.3697,2773.5,2772.9,4.45354411]
[1724599919511,2.3697,2773.5,2773.0,0.44535441]
[1724599919917,1.26017109,2773.4,2772.7,3.60649]
[1724599920225,2.3697,2773.3,2772.7,7.21299]
[1724599920535,2.3697,2773.3,2772.8,3.60645]
[1724599920836,2.3697,2773.3,2772.9,0.721294]
[1724599921630,2.3697,2773.3,2772.7,3.60649]
[1724599923428,2.3697,2773.3,2772.7,3.60649]
[1724599925533,2.3697,2773.3,2772.7,7.21299]
[1724599925730,2.3697,2773.3,2772.8,3.60641]
[1724599927786,2.3697,2773.3,2772.5,3.60678]
[1724599927928,2.70067,2773.2,2772.5,3.60676]
[1724599928128,2.4637,2773.2,2772.5,3.60676]
[1724599928570,2.4637,2773.2,2772.3,3.60703]
[1724599928772,2.4637,2773.2,2772.4,3.60695]
[1724599928947,2.4637,2773.0,2772.4,3.60695]
[1724599929343,2.4637,2773.0,2772.1,3.60725]
[1724599929548,2.4637,2772.8,2772.2,3.60715]
[1724599929769,2.4637,2772.8,2772.1,3.60725]
[1724599929965,2.4637,2772.8,2772.2,3.60723]
[1724599930277,2.4637,2772.8,2772.3,3.6071]
[1724599930474,2.89874978,2772.8,2772.3,3.6071]
[1724599930991,2.89874978,2772.8,2772.2,3.60722]
[1724599932733,2.89874978,2772.8,2772.0,3.60739]
[1724599932934,2.4637,2772.7,2771.9,3.60753]
[1724599933141,2.4637,2772.6,2771.7,7.21561]
[1724599933334,2.4637,2772.5,2771.7,7.937171]
[1724599934976,2.4637,2772.5,2771.7,0.721561]
[1724599935283,2.4637,2772.5,2772.1,3.60734]
[1724599936981,2.4637,2772.5,2771.9,3.60754]
[1724599938385,2.4637,2772.5,2771.7,3.6078]
[1724599940215,2.4637,2772.5,2771.7,7.2156]
[1724599940680,2.4637,2772.5,2771.7,3.6078]
[1724599940883,2.4637,2772.5,2771.7,3.96858]
[1724599941079,2.4637,2772.5,2771.7,7.57638]
[1724599941294,2.4637,2772.5,2771.7,3.96858]
[1724599942006,2.4637,2772.5,2771.6,3.608]
[1724599943338,2.3131,2772.4,2771.5,3.60809]
[1724599944743,2.3131,2772.3,2771.5,3.60809]
[1724599946224,2.3131,2772.3,2771.3,7.2167]
[1724599946428,2.374,2772.2,2771.4,0.72167]
[1724599946611,2.374,2772.2,2771.3,7.21663]
[1724599946809,2.374,2772.2,2771.3,3.6083]
[1724599947730,2.374,2772.1,2771.3,3.6083]
[1724599948045,2.374,2772.0,2771.1,3.60857]
[1724599948351,2.374,2771.8,2771.1,3.60857]
[1724599948760,2.374,2771.8,2770.9,3.60889]
[1724599949453,2.374,2771.6,2770.5,3.60936]
[1724599949659,2.374,2771.5,2770.6,3.60932]
[1724599949868,2.374,2771.5,2770.7,3.60914]
[1724599950045,2.374,2771.5,2770.7,4.33099]
[1724599950357,2.374,2771.5,2770.5,3.60936]
[1724599950563,2.374,2771.5,2770.6,3.60931]
[1724599950954,2.374,2771.5,2770.7,3.60919]
[1724599951439,2.374,2771.5,2770.7,3.6001268]
[1724599951754,2.374,2771.3,2770.7,3.6001268]
[1724599952316,2.374,2771.3,2770.8,3.60906]
[1724599953243,2.374,2771.3,2770.6,2.2762]
[1724599954248,2.374,2771.3,2771.0,3.60873]
[1724599954951,2.374,2771.3,2770.8,3.60901]
[1724599954952,2.374,2771.3,2770.9,3.60889]
[1724599955586,2.374,2771.3,2770.8,3.60901]
[1724599955896,2.374,2771.3,2770.9,3.60893]
[1724599957174,2.374,2771.3,2770.8,3.60901]
[1724599957508,2.374,2771.3,2770.7,3.60909]
[1724599957707,2.374,2771.3,2770.7,7.2182]
[1724599957915,2.374,2771.3,2770.7,4.55853]
[1724599958064,2.374,2771.3,2770.9,7.21778]
[1724599958267,2.374,2771.3,2771.0,3.60879]
[1724599958586,2.374,2771.5,2771.2,3.60851]
[1724599958915,2.374,2771.8,2771.3,3.60834]
[1724599959257,2.374,2771.8,2771.2,3.60851]
[1724599959464,2.374,2771.8,2771.0,3.60869]
[1724599959662,2.374,2771.8,2771.0,7.21742]
[1724599960208,2.374,2771.8,2771.0,3.60869]
[1724599960363,2.374,2771.7,2771.0,3.60869]
[1724599960764,2.374,2771.7,2771.0,7.21742]
[1724599962084,2.374,2771.7,2771.1,3.60867]
[1724599967649,2.374,2771.7,2771.0,3.60869]
[1724599967650,2.374,2771.7,2771.2,3.60851]
[1724599969539,2.374,2771.7,2771.1,3.60865]
[1724599969838,2.7375408,2771.7,2771.1,3.60865]
[1724599971415,2.7375408,2771.7,2771.0,3.60869]
[1724599971923,2.7375408,2771.7,2771.0,7.21742]
[1724599972538,2.7375408,2771.7,2771.0,3.60869]
[1724599972705,2.7375408,2771.7,2771.0,7.21742]
[1724599972907,2.7375408,2771.7,2771.0,3.60869]
[1724599973850,2.7375408,2771.7,2771.2,3.60854]
[1724599974441,2.7375408,2771.7,2771.3,3.60838]
[1724599974600,2.7375408,2771.7,2771.2,3.60854]
[1724599976056,2.2675,2771.5,2771.0,3.60875]
[1724599976438,2.2675,2771.5,2771.0,3.60872]
[1724599977136,2.2675,2771.5,2770.9,3.60892]
[1724599977357,2.2675,2771.3,2770.9,3.60892]
[1724599980384,2.2675,2771.3,2770.3,6.08569]
[1724599980532,2.2675,2771.1,2770.6,3.60921]
[1724599980726,2.2675,2771.1,2770.7,3.60918]
[1724599980933,2.2675,2771.1,2770.4,3.60947]
[1724599980934,1.26140803,2771.0,2770.4,3.60947]
[1724599981185,2.2675,2770.9,2770.4,3.60947]
[1724599981344,1.26140803,2770.6,2770.0,7.22007]
[1724599981678,1.26140803,2770.6,2770.0,3.61001]
[1724599981679,2.2675,2770.5,2770.0,3.61001]
[1724599982044,2.2675,2770.5,2770.0,7.22002]
[1724599982245,2.6203908,2770.5,2770.0,3.61001]
[1724599982445,2.2675,2770.3,2769.8,3.61027]
[1724599983434,1.26140803,2770.2,2769.6,3.61053]
[1724599983829,2.2675,2770.1,2769.6,3.61053]
[1724599984452,2.2675,2770.1,2769.4,3.61088]
[1724599984611,0.22675,2770.0,2769.4,3.61088]
[1724599984810,2.2675,2769.9,2769.4,3.61088]
[1724599985732,2.2675,2769.9,2769.2,3.61113]
[1724599986131,2.2675,2769.9,2769.2,7.22218]
[1724599986313,2.2675,2769.9,2769.3,3.61099]
[1724599987563,2.516925,2769.9,2769.3,3.61099]
[1724599988404,2.516925,2769.9,2768.9,3.61144]
[1724599988608,2.4134,2769.8,2768.9,3.61144]
[1724599989015,2.4134,2769.8,2769.0,3.61132]
[1724599989734,2.4134,2769.8,2769.1,3.61126]
[1724599989944,2.4134,2769.7,2769.1,3.61126]
[1724599990152,2.4134,2769.7,2769.3,3.611]
[1724599993227,9.8734,2769.9,2769.4,0.07221705]
[1724599993475,9.8734,2769.9,2769.6,3.61054]
[1724599993679,9.8734,2769.9,2769.2,2.253]
[1724599993680,9.8734,2769.9,2769.4,3.61082]
[1724599993893,8.44734,2769.9,2769.2,3.61105]
[1724599994101,2.4134,2769.8,2769.0,3.61133]
[1724599994247,2.4134,2769.7,2769.1,3.61126]
[1724599994690,2.4134,2769.7,2769.2,3.61106]
[1724599996654,2.4134,2769.7,2769.4,3.61078]
[1724599997946,2.4134,2769.7,2769.2,3.61106]
[1724599998468,2.4134,2769.7,2769.0,3.61135]
[1724600000186,2.4134,2769.7,2769.0,7.22267]
[1724600001000,2.4134,2769.7,2769.3,3.61098]
[1724600004576,2.4134,2769.7,2769.1,7.22239]
[1724600005119,2.4134,2769.7,2769.1,3.61116]
[1724600005254,2.65474,2769.7,2769.1,3.61116]
[1724600005700,2.65474,2769.7,2768.7,3.6117]
[1724600005905,2.4096,2769.6,2768.7,3.6117]
[1724600006114,2.4096,2769.5,2768.7,3.6117]
[1724600006774,2.4096,2769.5,2768.8,3.61165]
[1724600007616,2.674694,2769.5,2768.8,3.61165]
[1724600008083,2.674694,2769.5,2768.7,3.6117]
[1724600008671,2.674694,2769.5,2768.5,3.612]
[1724600008672,2.4096,2769.4,2768.5,3.612]
[1724600008920,2.4096,2769.4,2768.5,3.61199]
[1724600009091,3.875874,2769.5,2768.5,3.61197]
[1724600009092,2.4096,2769.2,2768.5,3.61197]
[1724600011303,2.4096,2769.2,2768.4,3.61216]
[1724600011661,2.4096,2769.2,2768.5,3.61206]
[1724600011862,2.4096,2769.2,2768.7,3.6117]
[1724600014606,2.4096,2769.2,2768.5,3.61198]
[1724600014936,2.4096,2769.2,2768.6,3.61192]
[1724600016653,2.4096,2769.2,2768.5,3.61197]
[1724600016824,2.4096,2769.2,2768.3,3.61227]
[1724600016825,2.4096,2769.2,2768.3,3.6122]
[1724600017035,2.4096,2769.0,2768.3,3.6122]
[1724600018427,2.4096,2769.0,2768.3,3.3622]
[1724600020051,2.4096,2769.0,2768.5,3.61204]
[1724600021469,2.4096,2769.0,2768.5,7.22408]
[1724600021836,2.4096,2769.0,2768.5,3.61204]
[1724600022173,2.4096,2769.0,2768.5,7.22402]
[1724600022531,2.4096,2769.0,2768.5,3.61198]
[1724600022782,2.4096,2769.0,2768.5,7.22396]
[1724600022979,2.4096,2769.0,2768.7,3.61172]
[1724600023130,2.4096,2769.0,2768.9,3.61154]
[1724600023336,2.4096,2769.4,2768.9,3.61154]
[1724600023584,2.4096,2769.4,2769.0,3.61131]
[1724600024933,2.4096,2769.4,2769.1,3.61127]
[1724600025229,2.4096,2769.4,2768.9,3.61154]
[1724600026376,2.4096,2769.4,2768.7,3.61169]
[1724600026578,2.3133,2769.3,2768.5,3.612]
[1724600027133,2.3133,2769.3,2768.6,3.61191]
[1724600028374,2.3133,2769.3,2768.7,3.6117]
[1724600029987,3.389326,2769.3,2768.7,3.6117]
[1724600031275,3.389326,2769.3,2768.7,7.22342]
[1724600031478,3.389326,2769.3,2768.7,3.6117]
[1724600032326,2.3133,2769.2,2768.7,3.6117]
[1724600034634,2.3133,2769.2,2768.5,3.61195]
[1724600034799,2.3133,2769.2,2768.6,3.61191]
[1724600035004,2.7509286,2769.2,2768.3,3.61225]
[1724600035329,2.7509286,2769.2,2768.3,3.61224]
[1724600036047,2.7509286,2769.2,2768.4,3.61217]
[1724600040259,2.7509286,2769.2,2768.4,3.6121]
[1724600041599,2.7509286,2769.2,2768.4,7.2242]
[1724600041961,2.3133,2769.0,2768.4,7.2242]
[1724600042166,2.3133,2769.0,2768.5,3.61204]
[1724600042995,2.3133,2769.0,2768.6,3.61192]
[1724600043286,2.3133,2769.0,2768.6,3.61184]
[1724600044396,2.3133,2769.0,2768.4,4.87584083]
[1724600044616,2.64558942,2769.0,2768.5,3.61203]
[1724600045765,2.3133,2769.0,2768.7,3.61172]
[1724600046613,2.3133,2769.0,2768.6,3.61192]
[1724600046822,2.3133,2769.0,2768.6,3.61185]
[1724600047339,2.3133,2769.0,2768.5,3.61195]
[1724600047627,2.3133,2769.0,2768.6,3.61186]
[1724600047852,2.73399627,2769.0,2768.6,3.61186]
[1724600048187,2.73399627,2769.0,2768.4,3.61211]
[1724600049542,4.62765896,2769.0,2768.4,3.61211]
[1724600049697,2.3021,2768.9,2768.4,3.61211]
[1724600049917,1.26375083,2768.5,2768.0,3.61264]
[1724600050218,2.3021,2768.4,2768.0,3.61264]
[1724600050625,2.3021,2768.2,2767.7,3.613]
[1724600050791,2.3021,2768.2,2767.6,3.6132]
[1724600050792,2.3021,2768.2,2767.8,3.61296]
[1724600053452,2.53231,2768.2,2767.6,3.61314]
[1724600053736,2.3021,2768.2,2767.6,3.61314]
[1724600054541,2.3021,2768.2,2767.7,3.61309]
[1724600056047,2.3021,2768.2,2767.5,0.43628502]
[1724600056412,2.3021,2768.2,2767.5,4.04956502]
[1724600056627,1.89369945,2768.4,2767.6,3.61315]
[1724600056628,2.3096,2768.0,2767.6,3.61315]
[1724600056950,2.3096,2768.3,2767.9,7.22552]
[1724600057092,2.3096,2768.3,2767.9,3.61276]
[1724600057289,2.3096,2768.3,2767.5,4.04960502]
[1724600057494,2.3096,2768.2,2767.5,4.04955502]
[1724600058148,2.3096,2768.2,2767.6,3.61321]
[1724600058404,2.3096,2768.2,2767.5,4.04955502]
[1724600058688,2.3096,2768.2,2767.5,0.43628502]
[1724600058893,2.3096,2768.1,2767.5,0.43628502]
[1724600059048,2.3096,2767.9,2767.5,0.43628502]
[1724600060155,2.3096,2767.8,2767.5,0.43628502]
[1724600064380,7.46,2768.2,2767.5,0.43628502]
[1724600064680,7.46,2768.2,2767.5,4.04958502]
[1724600064681,2.3096,2768.1,2767.5,4.04958502]
[1724600064860,2.3096,2768.1,2767.5,0.43628502]
[1724600065064,3.384256,2768.1,2767.5,0.43628502]
[1724600065814,3.384256,2768.1,2767.5,4.04964502]
[1724600066269,2.3997,2768.0,2767.5,0.43628502]
[1724600070629,3.61287,2767.9,2767.5,0.43628502]
[1724600070914,2.3997,2767.8,2767.5,0.43628502]
[1724600071116,2.760987,2767.8,2767.5,0.43628502]
[1724600075439,2.3997,2767.2,2765.7,1.13464659]
[1724600075632,3.03478304,2766.6,2765.8,0.56649623]
[1724600075924,3.03478304,2766.6,2765.1,2.3166]
[1724600075925,0.3034783,2766.5,2765.7,3.61571]
[1724600076071,2.3997,2766.8,2765.7,2.3166]
[1724600076272,2.3997,2766.8,2766.1,3.61508]
[1724600076473,2.3997,2766.8,2766.2,3.61503]
[1724600077002,2.3997,2766.8,2766.3,3.6149]
[1724600077217,5.3997,2767.1,2766.2,3.61503]
[1724600077429,0.90196674,2767.0,2766.0,3.61531]
[1724600077576,0.90196674,2767.0,2766.1,3.61518]
[1724600078005,0.90196674,2767.0,2766.0,3.61531]
[1724600078206,0.90196674,2767.0,2766.1,3.61518]
[1724600079208,0.90196674,2767.0,2765.9,3.61537]
[1724600079209,4.51598674,2767.0,2765.9,3.61537]
[1724600079446,1.05295967,2766.9,2766.0,3.976827]
[1724600080242,1.05295967,2766.9,2766.1,3.61518]
[1724600080445,2.3997,2767.1,2766.1,3.61518]
[1724600080605,2.3997,2767.4,2766.7,3.61436]
[1724600080805,2.3997,2767.4,2766.8,0.361436]
[1724600081022,2.3997,2767.4,2766.7,3.61436]
[1724600081444,2.3997,2767.4,2766.8,3.61418]
[1724600081748,2.760987,2767.8,2767.1,3.61382]
[1724600081918,6.01269,2767.8,2766.7,7.22868]
[1724600082121,3.61325,2767.6,2766.6,3.61452]
[1724600082434,7.22644,2767.7,2766.6,3.61452]
[1724600082606,3.61322,2767.7,2766.6,3.61445]
[1724600082953,0.601292,2767.6,2766.6,4.207555]
[1724600083163,0.601292,2767.6,2766.7,3.6144]
[1724600083318,0.601292,2767.6,2766.6,4.207555]
[1724600083649,0.601292,2767.6,2766.7,3.61441]